[Event "Late-Titled-Tuesday-Blitz-June-18-2024"]
[Site "Chess.com"]
[Date "2024.06.18"]
[Round "3"]
[White "lamomiajunior"]
[Black "Tolya2"]
[Result "1-0"]
[WhiteElo "2688"]
[BlackElo "2476"]
[TimeControl "180+1"]
[EndTime "14:28:52 PDT"]
[Termination "lamomiajunior won by resignation"]

1. e4 {[%clk 0:03:00.9]} 1... c5 {[%clk 0:02:59.2]} 2. Nf3 {[%clk 0:03:00.4]}
2... d6 {[%clk 0:02:59.3]} 3. c3 {[%clk 0:03:00.6]} 3... Nf6 {[%clk 0:02:57.9]}
4. h3 {[%clk 0:03:00.9]} 4... g6 {[%clk 0:02:57.8]} 5. Bd3 {[%clk 0:02:59.3]}
5... Bg7 {[%clk 0:02:57.5]} 6. Bc2 {[%clk 0:02:59.8]} 6... O-O {[%clk
0:02:57.2]} 7. O-O {[%clk 0:02:59.9]} 7... b5 {[%clk 0:02:52.9]} 8. d4 {[%clk
0:02:59.1]} 8... Nbd7 {[%clk 0:02:51.5]} 9. Re1 {[%clk 0:02:56.9]} 9... Bb7
{[%clk 0:02:50.9]} 10. a4 {[%clk 0:02:40.5]} 10... b4 {[%clk 0:02:47.3]} 11.
cxb4 {[%clk 0:02:40.9]} 11... cxb4 {[%clk 0:02:41.3]} 12. a5 {[%clk 0:02:36.1]}
12... Rc8 {[%clk 0:02:35.8]} 13. Bd2 {[%clk 0:02:30.6]} 13... d5 {[%clk
0:02:22.3]} 14. e5 {[%clk 0:02:27.3]} 14... Ne4 {[%clk 0:02:21.9]} 15. Bxb4
{[%clk 0:02:27.2]} 15... Re8 {[%clk 0:02:20.6]} 16. Nc3 {[%clk 0:02:13.6]} 16...
e6 {[%clk 0:02:19.5]} 17. Nxe4 {[%clk 0:02:07.6]} 17... dxe4 {[%clk 0:02:18.4]}
18. Bxe4 {[%clk 0:02:08.5]} 18... Bxe4 {[%clk 0:02:17.8]} 19. Rxe4 {[%clk
0:02:09.4]} 19... Nb8 {[%clk 0:02:09]} 20. Bd6 {[%clk 0:02:04.1]} 20... Bf8
{[%clk 0:02:06.7]} 21. Bxf8 {[%clk 0:02:04]} 21... Rxf8 {[%clk 0:02:05.3]} 22.
Qd2 {[%clk 0:02:03.1]} 22... Qd5 {[%clk 0:02:04.1]} 23. Rh4 {[%clk 0:02:02.9]}
23... f5 {[%clk 0:01:53]} 24. Kh2 {[%clk 0:01:49.6]} 24... Nc6 {[%clk
0:01:50.6]} 25. Qh6 {[%clk 0:01:48.7]} 25... Rc7 {[%clk 0:01:49.8]} 26. Rc1
{[%clk 0:01:49.3]} 26... Rg7 {[%clk 0:01:44.8]} 27. Rc5 {[%clk 0:01:46.7]} 27...
Qd7 {[%clk 0:01:42.6]} 28. Ng5 {[%clk 0:01:40.4]} 28... f4 {[%clk 0:01:36.9]}
29. Rxc6 {[%clk 0:01:21.9]} 29... Qxc6 {[%clk 0:01:32.8]} 30. Nxh7 {[%clk
0:01:21.8]} 30... Rf5 {[%clk 0:01:31.3]} 31. Ng5 {[%clk 0:01:18.2]} 31... Rxg5
{[%clk 0:01:16.4]} 32. Qxg5 {[%clk 0:01:19.1]} 32... Qd7 {[%clk 0:01:12.7]} 33.
Rxf4 {[%clk 0:01:18.7]} 33... Kh7 {[%clk 0:01:04.6]} 34. Qf6 {[%clk 0:01:17.6]}
34... a6 {[%clk 0:00:59]} 35. Qf8 {[%clk 0:01:10.6]} 35... g5 {[%clk 0:00:57.9]}
36. Rg4 {[%clk 0:01:10]} 36... Kg6 {[%clk 0:00:54.2]} 37. Qf6+ {[%clk
0:01:06.1]} 37... Kh7 {[%clk 0:00:53.1]} 38. f4 {[%clk 0:01:05.5]} 38... Qf7
{[%clk 0:00:44.9]} 39. fxg5 {[%clk 0:01:03.6]} 39... Qg6 {[%clk 0:00:42.3]} 40.
Qxg6+ {[%clk 0:01:02.8]} 40... Kxg6 {[%clk 0:00:41.1]} 41. Rf4 {[%clk
0:01:03.3]} 41... Rb7 {[%clk 0:00:40]} 42. Rf6+ {[%clk 0:01:03.2]} 42... Kxg5
{[%clk 0:00:40.2]} 43. Rxe6 {[%clk 0:01:04.1]} 43... Rxb2 {[%clk 0:00:38.9]} 44.
Rxa6 {[%clk 0:01:04]} 44... Rd2 {[%clk 0:00:37.9]} 45. Rd6 {[%clk 0:01:04.6]}
45... Ra2 {[%clk 0:00:37.7]} 46. a6 {[%clk 0:01:05.2]} 46... Kf5 {[%clk
0:00:37.7]} 47. e6 {[%clk 0:01:05.1]} 47... Kf6 {[%clk 0:00:37.4]} 48. d5 {[%clk
0:01:05.5]} 48... Ra5 {[%clk 0:00:33.9]} 49. Rd7 {[%clk 0:01:04.5]} 1-0

[Event "Late-Titled-Tuesday-Blitz-June-18-2024"]
[Site "Chess.com"]
[Date "2024.06.18"]
[Round "3"]
[White "ozates"]
[Black "TigrVShlyape"]
[Result "0-1"]
[WhiteElo "2630"]
[BlackElo "2999"]
[TimeControl "180+1"]
[EndTime "14:28:53 PDT"]
[Termination "TigrVShlyape won by resignation"]

1. e4 {[%clk 0:03:00.9]} 1... c5 {[%clk 0:02:59.8]} 2. Nf3 {[%clk 0:03:00.8]}
2... e6 {[%clk 0:03:00.2]} 3. d4 {[%clk 0:02:58.3]} 3... cxd4 {[%clk 0:03:00.4]}
4. Nxd4 {[%clk 0:02:59.2]} 4... a6 {[%clk 0:03:00.7]} 5. Nc3 {[%clk 0:02:57.6]}
5... b5 {[%clk 0:03:00.3]} 6. g3 {[%clk 0:02:57.6]} 6... Bb7 {[%clk 0:02:59.8]}
7. Bg2 {[%clk 0:02:57.9]} 7... Nc6 {[%clk 0:02:58]} 8. O-O {[%clk 0:02:58]} 8...
Nxd4 {[%clk 0:02:56.2]} 9. Qxd4 {[%clk 0:02:58.9]} 9... Ne7 {[%clk 0:02:54.1]}
10. Re1 {[%clk 0:02:57.7]} 10... Nc6 {[%clk 0:02:51.2]} 11. Qd3 {[%clk
0:02:55.6]} 11... Ne5 {[%clk 0:02:40]} 12. Qe2 {[%clk 0:02:52.8]} 12... Rc8
{[%clk 0:02:37.8]} 13. f4 {[%clk 0:02:51.6]} 13... Nc4 {[%clk 0:02:36.2]} 14. a4
{[%clk 0:02:50]} 14... Bb4 {[%clk 0:02:32.6]} 15. axb5 {[%clk 0:02:49.6]} 15...
axb5 {[%clk 0:02:32.5]} 16. Kh1 {[%clk 0:02:42.4]} 16... Bxc3 {[%clk 0:02:30.6]}
17. bxc3 {[%clk 0:02:42]} 17... O-O {[%clk 0:02:31]} 18. Rb1 {[%clk 0:02:33.9]}
18... Bc6 {[%clk 0:02:26.6]} 19. Be3 {[%clk 0:02:24.6]} 19... Nxe3 {[%clk
0:02:25.9]} 20. Qxe3 {[%clk 0:02:24.8]} 20... Ra8 {[%clk 0:02:25]} 21. Red1
{[%clk 0:02:22.6]} 21... Qc7 {[%clk 0:02:18.6]} 22. Qc5 {[%clk 0:02:20.6]} 22...
Rfc8 {[%clk 0:02:17.8]} 23. Qd4 {[%clk 0:02:15.2]} 23... h6 {[%clk 0:02:14.4]}
24. Ra1 {[%clk 0:02:12.9]} 24... Ra4 {[%clk 0:02:13.6]} 25. Rxa4 {[%clk
0:01:58.2]} 25... bxa4 {[%clk 0:02:13.6]} 26. Ra1 {[%clk 0:01:57.2]} 26... Bb5
{[%clk 0:02:06.6]} 27. Qb4 {[%clk 0:01:54.1]} 27... Qxc3 {[%clk 0:02:05.5]} 28.
Rb1 {[%clk 0:01:42.8]} 28... Qxb4 {[%clk 0:02:03.5]} 29. Rxb4 {[%clk 0:01:43.3]}
29... Rxc2 {[%clk 0:01:58]} 30. Rxb5 {[%clk 0:01:32.4]} 30... Rc1+ {[%clk
0:01:57.9]} 31. Bf1 {[%clk 0:01:33.1]} 31... Rxf1+ {[%clk 0:01:58]} 32. Kg2
{[%clk 0:01:34]} 32... Re1 {[%clk 0:01:52.5]} 33. e5 {[%clk 0:01:34]} 33... Kf8
{[%clk 0:01:52.4]} 34. Ra5 {[%clk 0:01:27.4]} 34... Re2+ {[%clk 0:01:52.3]} 35.
Kf3 {[%clk 0:01:26]} 35... Ra2 {[%clk 0:01:49.7]} 36. h4 {[%clk 0:01:26.3]}
36... h5 {[%clk 0:01:49.7]} 37. Ke3 {[%clk 0:01:18.9]} 37... Ke7 {[%clk
0:01:49.3]} 38. Kf3 {[%clk 0:01:19.2]} 38... a3 {[%clk 0:01:49]} 39. Ra6 {[%clk
0:01:18]} 39... Ra1 {[%clk 0:01:49.1]} 40. Kg2 {[%clk 0:01:17.6]} 40... f6
{[%clk 0:01:45.9]} 41. Ra5 {[%clk 0:01:13.2]} 41... fxe5 {[%clk 0:01:44.3]} 42.
fxe5 {[%clk 0:01:11.3]} 42... Kd8 {[%clk 0:01:41.4]} 43. Ra4 {[%clk 0:01:08]}
43... Kc7 {[%clk 0:01:40.6]} 44. Kf3 {[%clk 0:00:55.5]} 44... Kb6 {[%clk
0:01:39.4]} 45. Kf4 {[%clk 0:00:54.2]} 45... Kb5 {[%clk 0:01:33]} 46. Ra8 {[%clk
0:00:53.8]} 46... Kb4 {[%clk 0:01:33]} 47. Kg5 {[%clk 0:00:54.2]} 47... Re1
{[%clk 0:01:30.2]} 48. Kxh5 {[%clk 0:00:53.5]} 48... Rxe5+ {[%clk 0:01:29.5]}
49. Kg6 {[%clk 0:00:53.9]} 49... Ra5 {[%clk 0:01:29.3]} 50. Rb8+ {[%clk
0:00:52.4]} 50... Kc4 {[%clk 0:01:26.9]} 51. Rb1 {[%clk 0:00:53.3]} 51... a2
{[%clk 0:01:26.8]} 52. Ra1 {[%clk 0:00:53.5]} 52... Kb3 {[%clk 0:01:20.4]} 53.
g4 {[%clk 0:00:53.5]} 53... Ra4 {[%clk 0:01:19.8]} 54. Rg1 {[%clk 0:00:38.6]}
54... a1=Q {[%clk 0:01:16.1]} 55. Rxa1 {[%clk 0:00:37.6]} 55... Rxa1 {[%clk
0:01:16.7]} 0-1

[Event "Late-Titled-Tuesday-Blitz-June-18-2024"]
[Site "Chess.com"]
[Date "2024.06.18"]
[Round "3"]
[White "CM_rui"]
[Black "LeonardoL2005"]
[Result "0-1"]
[WhiteElo "2530"]
[BlackElo "2263"]
[TimeControl "180+1"]
[EndTime "14:28:53 PDT"]
[Termination "LeonardoL2005 won by resignation"]

1. e4 {[%clk 0:02:53.3]} 1... c5 {[%clk 0:02:59.2]} 2. Nf3 {[%clk 0:02:52.5]}
2... g6 {[%clk 0:02:59.2]} 3. c4 {[%clk 0:02:52.6]} 3... Bg7 {[%clk 0:02:58.7]}
4. d4 {[%clk 0:02:53]} 4... cxd4 {[%clk 0:02:58.7]} 5. Nxd4 {[%clk 0:02:53.9]}
5... Nc6 {[%clk 0:02:59]} 6. Be3 {[%clk 0:02:51]} 6... Nf6 {[%clk 0:02:58.3]} 7.
Nc3 {[%clk 0:02:51.9]} 7... O-O {[%clk 0:02:57.4]} 8. Be2 {[%clk 0:02:50.1]}
8... Nxd4 {[%clk 0:02:57.3]} 9. Bxd4 {[%clk 0:02:51]} 9... d6 {[%clk 0:02:57.8]}
10. O-O {[%clk 0:02:51.3]} 10... Bd7 {[%clk 0:02:58.4]} 11. Rc1 {[%clk
0:02:51.2]} 11... Bc6 {[%clk 0:02:59]} 12. f3 {[%clk 0:02:51.6]} 12... a5 {[%clk
0:02:59.6]} 13. b3 {[%clk 0:02:51.3]} 13... Nd7 {[%clk 0:03:00]} 14. Bxg7 {[%clk
0:02:51.1]} 14... Kxg7 {[%clk 0:03:00.9]} 15. Qd4+ {[%clk 0:02:51.7]} 15... f6
{[%clk 0:03:01]} 16. Kh1 {[%clk 0:02:52.2]} 16... Nc5 {[%clk 0:03:01.2]} 17. f4
{[%clk 0:02:48.2]} 17... e5 {[%clk 0:02:52.3]} 18. fxe5 {[%clk 0:02:45.3]} 18...
fxe5 {[%clk 0:02:52.2]} 19. Qe3 {[%clk 0:02:42.6]} 19... Rxf1+ {[%clk
0:02:47.9]} 20. Rxf1 {[%clk 0:02:42.3]} 20... Ne6 {[%clk 0:02:48.1]} 21. Bg4
{[%clk 0:02:36]} 21... Nd4 {[%clk 0:02:33.3]} 22. Qg3 {[%clk 0:02:25.7]} 22...
Qg5 {[%clk 0:02:23.3]} 23. h4 {[%clk 0:02:23.7]} 23... Qd2 {[%clk 0:02:16.5]}
24. Nd5 {[%clk 0:02:17.6]} 24... Bxd5 {[%clk 0:02:14.9]} 25. cxd5 {[%clk
0:02:18.5]} 25... Rf8 {[%clk 0:02:00.6]} 26. Rd1 {[%clk 0:02:06.8]} 26... Qf2
{[%clk 0:01:52.5]} 27. Kh2 {[%clk 0:02:07.3]} 27... Qxa2 {[%clk 0:01:44.3]} 28.
h5 {[%clk 0:01:51.8]} 28... Qxb3 {[%clk 0:01:42]} 29. Qh4 {[%clk 0:01:48]} 29...
Qe3 {[%clk 0:01:35.3]} 30. Qe7+ {[%clk 0:01:30]} 30... Rf7 {[%clk 0:01:30.3]}
31. Qxd6 {[%clk 0:01:30.6]} 31... Qf4+ {[%clk 0:01:28.8]} 32. g3 {[%clk
0:01:24.8]} 32... Qxg4 {[%clk 0:01:20.3]} 33. Qxe5+ {[%clk 0:01:25.1]} 33... Kh6
{[%clk 0:01:20.2]} 34. Qxd4 {[%clk 0:01:18.3]} 34... Qxh5+ {[%clk 0:01:20]} 35.
Kg1 {[%clk 0:01:17.9]} 35... Qf3 {[%clk 0:01:11]} 36. Kh2 {[%clk 0:01:02]} 36...
Qe2+ {[%clk 0:01:06.2]} 37. Kh3 {[%clk 0:00:57.7]} 37... Rf2 {[%clk 0:01:03.8]}
38. Qxf2 {[%clk 0:00:46.8]} 38... Qxf2 {[%clk 0:01:02.4]} 39. d6 {[%clk
0:00:47.3]} 39... Qf3 {[%clk 0:00:41.5]} 40. Rd4 {[%clk 0:00:44.5]} 40... g5
{[%clk 0:00:39.1]} 41. d7 {[%clk 0:00:41.8]} 41... g4+ {[%clk 0:00:39]} 42. Kh4
{[%clk 0:00:40.5]} 42... Qf6+ {[%clk 0:00:38.2]} 43. Kxg4 {[%clk 0:00:39.6]}
43... Qxd4 {[%clk 0:00:38.8]} 44. d8=Q {[%clk 0:00:37.9]} 44... Qxd8 {[%clk
0:00:39.2]} 0-1

[Event "Late-Titled-Tuesday-Blitz-June-18-2024"]
[Site "Chess.com"]
[Date "2024.06.18"]
[Round "3"]
[White "Andrey-Ivanov2011"]
[Black "AlexanderMatlak"]
[Result "1-0"]
[WhiteElo "2157"]
[BlackElo "2463"]
[TimeControl "180+1"]
[EndTime "14:28:53 PDT"]
[Termination "Andrey-Ivanov2011 won by resignation"]

1. d4 {[%clk 0:03:00.9]} 1... Nf6 {[%clk 0:02:59.7]} 2. c4 {[%clk 0:03:00.2]}
2... c5 {[%clk 0:02:59.8]} 3. d5 {[%clk 0:02:59.8]} 3... e6 {[%clk 0:03:00.3]}
4. Nc3 {[%clk 0:02:58.6]} 4... exd5 {[%clk 0:03:00.6]} 5. cxd5 {[%clk
0:02:59.5]} 5... d6 {[%clk 0:03:01.2]} 6. e4 {[%clk 0:02:59.9]} 6... g6 {[%clk
0:03:01.6]} 7. Nf3 {[%clk 0:03:00.4]} 7... Bg7 {[%clk 0:03:01.9]} 8. Bd3 {[%clk
0:02:59.7]} 8... Bg4 {[%clk 0:02:54.7]} 9. h3 {[%clk 0:02:59]} 9... Bxf3 {[%clk
0:02:54.3]} 10. Qxf3 {[%clk 0:02:58.1]} 10... O-O {[%clk 0:02:54.4]} 11. O-O
{[%clk 0:02:58.2]} 11... a6 {[%clk 0:02:53.5]} 12. a4 {[%clk 0:02:57.3]} 12...
Nbd7 {[%clk 0:02:53.8]} 13. Bf4 {[%clk 0:02:57.1]} 13... Qe7 {[%clk 0:02:54]}
14. Rfe1 {[%clk 0:02:56.3]} 14... Ne5 {[%clk 0:02:54]} 15. Bxe5 {[%clk 0:02:56]}
15... Qxe5 {[%clk 0:02:54.9]} 16. Rac1 {[%clk 0:02:53.5]} 16... Rab8 {[%clk
0:02:54.1]} 17. Rc2 {[%clk 0:02:48.6]} 17... Rfe8 {[%clk 0:02:54.3]} 18. Rce2
{[%clk 0:02:46.2]} 18... Qd4 {[%clk 0:02:51.3]} 19. Bb1 {[%clk 0:02:43.9]} 19...
b5 {[%clk 0:02:47.8]} 20. axb5 {[%clk 0:02:42.4]} 20... axb5 {[%clk 0:02:48.7]}
21. Rd1 {[%clk 0:02:37.8]} 21... Qe5 {[%clk 0:02:48.4]} 22. Rde1 {[%clk
0:02:33.6]} 22... b4 {[%clk 0:02:46]} 23. Nd1 {[%clk 0:02:32.1]} 23... c4 {[%clk
0:02:35.8]} 24. Ne3 {[%clk 0:02:26.6]} 24... c3 {[%clk 0:02:27.7]} 25. Nc4
{[%clk 0:02:24.6]} 25... Qe7 {[%clk 0:02:08.1]} 26. e5 {[%clk 0:02:22.2]} 26...
dxe5 {[%clk 0:02:04.3]} 27. Rxe5 {[%clk 0:02:20.9]} 27... Qd7 {[%clk 0:02:04.1]}
28. Rxe8+ {[%clk 0:02:19.8]} 28... Nxe8 {[%clk 0:02:02.4]} 29. bxc3 {[%clk
0:02:11.3]} 29... bxc3 {[%clk 0:02:03.3]} 30. Bc2 {[%clk 0:02:08.5]} 30... Nd6
{[%clk 0:01:56.2]} 31. Ne5 {[%clk 0:02:03.1]} 31... Bxe5 {[%clk 0:01:46.8]} 32.
Rxe5 {[%clk 0:02:04]} 32... Rb2 {[%clk 0:01:38.3]} 33. Qxc3 {[%clk 0:01:58.8]}
33... Qb7 {[%clk 0:01:20.8]} 34. Be4 {[%clk 0:01:50.6]} 34... Qb6 {[%clk
0:01:00.8]} 35. Qg3 {[%clk 0:01:31.8]} 35... Qd4 {[%clk 0:00:54.8]} 36. Bf3
{[%clk 0:01:27]} 36... Rb1+ {[%clk 0:00:45.9]} 37. Kh2 {[%clk 0:01:25.8]} 37...
Qa1 {[%clk 0:00:41.5]} 38. Qg5 {[%clk 0:01:10.5]} 38... h6 {[%clk 0:00:20.8]}
39. Qd8+ {[%clk 0:01:02.1]} 39... Kh7 {[%clk 0:00:19.6]} 40. Qxd6 {[%clk
0:01:01.7]} 40... Rh1+ {[%clk 0:00:19.2]} 41. Kg3 {[%clk 0:01:01.5]} 41... Qd4
{[%clk 0:00:15.3]} 42. Qf6 {[%clk 0:00:58.3]} 1-0

[Event "Late-Titled-Tuesday-Blitz-June-18-2024"]
[Site "Chess.com"]
[Date "2024.06.18"]
[Round "3"]
[White "carokannlover213"]
[Black "kleber2007"]
[Result "1-0"]
[WhiteElo "2685"]
[BlackElo "2478"]
[TimeControl "180+1"]
[EndTime "14:28:59 PDT"]
[Termination "carokannlover213 won by resignation"]

1. d4 {[%clk 0:03:00.9]} 1... Nf6 {[%clk 0:02:59]} 2. Nf3 {[%clk 0:03:01.8]}
2... g6 {[%clk 0:02:59.4]} 3. Nc3 {[%clk 0:02:57.4]} 3... d5 {[%clk 0:02:58.8]}
4. Bf4 {[%clk 0:02:56.4]} 4... Bg7 {[%clk 0:02:58.6]} 5. h4 {[%clk 0:02:56.7]}
5... c5 {[%clk 0:02:48.2]} 6. e3 {[%clk 0:02:48.1]} 6... cxd4 {[%clk 0:02:47.6]}
7. Nb5 {[%clk 0:02:32.9]} 7... Na6 {[%clk 0:02:27.4]} 8. exd4 {[%clk 0:02:19.2]}
8... O-O {[%clk 0:02:18.6]} 9. c3 {[%clk 0:02:15.2]} 9... Bg4 {[%clk 0:02:15.6]}
10. Be2 {[%clk 0:02:12.5]} 10... Bxf3 {[%clk 0:02:09.4]} 11. Bxf3 {[%clk
0:02:03.9]} 11... h5 {[%clk 0:02:09.4]} 12. Qe2 {[%clk 0:02:02]} 12... Re8
{[%clk 0:01:52.2]} 13. O-O-O {[%clk 0:02:00]} 13... Qa5 {[%clk 0:01:50.2]} 14.
Kb1 {[%clk 0:01:56.4]} 14... Nd7 {[%clk 0:01:25.1]} 15. Bxd5 {[%clk 0:01:47.8]}
15... e5 {[%clk 0:01:25.1]} 16. Bg3 {[%clk 0:01:01.9]} 16... exd4 {[%clk
0:01:14.1]} 17. Bxf7+ {[%clk 0:00:45.7]} 17... Kxf7 {[%clk 0:01:13.4]} 18. Qc4+
{[%clk 0:00:46.6]} 18... Re6 {[%clk 0:00:59.9]} 19. Nxd4 {[%clk 0:00:43.9]}
19... Bxd4 {[%clk 0:00:57.4]} 20. Rxd4 {[%clk 0:00:42]} 20... Qf5+ {[%clk
0:00:54.6]} 21. Ka1 {[%clk 0:00:39.2]} 21... Nf8 {[%clk 0:00:43.9]} 22. Rf4
{[%clk 0:00:37.4]} 22... Re8 {[%clk 0:00:43.3]} 23. Rxf5+ {[%clk 0:00:36.7]}
23... gxf5 {[%clk 0:00:44.2]} 24. a3 {[%clk 0:00:34.6]} 24... Kg6 {[%clk
0:00:39]} 25. Rd1 {[%clk 0:00:28.2]} 25... Nh7 {[%clk 0:00:33.8]} 26. Rd6 {[%clk
0:00:25.4]} 26... Rxd6 {[%clk 0:00:33.4]} 27. Bxd6 {[%clk 0:00:26.3]} 27... Nf6
{[%clk 0:00:34.1]} 28. f3 {[%clk 0:00:24.2]} 28... Nb8 {[%clk 0:00:30.2]} 29.
Bxb8 {[%clk 0:00:22.4]} 29... Rxb8 {[%clk 0:00:30]} 30. Qf4 {[%clk 0:00:22.9]}
30... Re8 {[%clk 0:00:27]} 31. Qg5+ {[%clk 0:00:22.7]} 31... Kf7 {[%clk
0:00:27]} 32. Qxf5 {[%clk 0:00:23.6]} 32... Re2 {[%clk 0:00:26.3]} 33. g4 {[%clk
0:00:23.1]} 1-0

[Event "Late-Titled-Tuesday-Blitz-June-18-2024"]
[Site "Chess.com"]
[Date "2024.06.18"]
[Round "3"]
[White "pirulillo"]
[Black "kinga2008"]
[Result "1-0"]
[WhiteElo "2400"]
[BlackElo "2566"]
[TimeControl "180+1"]
[EndTime "14:28:59 PDT"]
[Termination "pirulillo won by resignation"]

1. e4 {[%clk 0:03:00.9]} 1... c5 {[%clk 0:02:56.5]} 2. Nf3 {[%clk 0:02:58.3]}
2... Nc6 {[%clk 0:02:55.2]} 3. b4 {[%clk 0:02:55.7]} 3... cxb4 {[%clk
0:02:54.2]} 4. d4 {[%clk 0:02:54.7]} 4... d5 {[%clk 0:02:54.1]} 5. exd5 {[%clk
0:02:54.6]} 5... Qxd5 {[%clk 0:02:53.4]} 6. c4 {[%clk 0:02:55.1]} 6... Qe4+
{[%clk 0:02:46.1]} 7. Be3 {[%clk 0:02:54.2]} 7... Bg4 {[%clk 0:02:42.4]} 8. Nbd2
{[%clk 0:02:41.6]} 8... Qg6 {[%clk 0:02:29.4]} 9. d5 {[%clk 0:02:19.9]} 9... Ne5
{[%clk 0:02:28]} 10. Qa4+ {[%clk 0:02:17.4]} 10... Bd7 {[%clk 0:02:12.4]} 11.
Qxb4 {[%clk 0:02:08.3]} 11... Nxf3+ {[%clk 0:02:08.8]} 12. Nxf3 {[%clk
0:02:06.1]} 12... b6 {[%clk 0:02:01.5]} 13. Ne5 {[%clk 0:01:53.9]} 13... Qf6
{[%clk 0:01:56.8]} 14. Bd4 {[%clk 0:01:46.2]} 14... Qd6 {[%clk 0:01:35.2]} 15.
Qc3 {[%clk 0:01:35.5]} 15... e6 {[%clk 0:01:26.2]} 16. Nxd7 {[%clk 0:01:34.1]}
16... Qxd7 {[%clk 0:01:22.3]} 17. Bxg7 {[%clk 0:01:32.6]} 17... O-O-O {[%clk
0:00:32]} 18. Bxh8 {[%clk 0:01:21]} 18... Qa4 {[%clk 0:00:31.4]} 19. Rb1 {[%clk
0:01:05.9]} 19... Qxa2 {[%clk 0:00:27.2]} 20. Qb3 {[%clk 0:01:00.3]} 20... Qa5+
{[%clk 0:00:18.8]} 21. Bc3 {[%clk 0:00:59.9]} 21... Qc5 {[%clk 0:00:17.4]} 22.
Be2 {[%clk 0:00:57.9]} 22... exd5 {[%clk 0:00:17.4]} 23. cxd5 {[%clk 0:00:56.1]}
23... Re8 {[%clk 0:00:16.8]} 24. Kf1 {[%clk 0:00:49.3]} 24... Ne7 {[%clk
0:00:12.4]} 25. Qc4 {[%clk 0:00:48.2]} 25... Nxd5 {[%clk 0:00:10.9]} 26. Qxc5+
{[%clk 0:00:47.1]} 26... bxc5 {[%clk 0:00:11.8]} 27. Ba5 {[%clk 0:00:42.5]}
27... f5 {[%clk 0:00:04.9]} 28. h4 {[%clk 0:00:36.9]} 28... Bh6 {[%clk
0:00:02.8]} 29. Ba6+ {[%clk 0:00:30.3]} 29... Kd7 {[%clk 0:00:02.8]} 30. Bb5+
{[%clk 0:00:30.5]} 1-0

[Event "Late-Titled-Tuesday-Blitz-June-18-2024"]
[Site "Chess.com"]
[Date "2024.06.18"]
[Round "3"]
[White "teresin05"]
[Black "DishonorOnYourCow"]
[Result "0-1"]
[WhiteElo "2283"]
[BlackElo "2511"]
[TimeControl "180+1"]
[EndTime "14:29:00 PDT"]
[Termination "DishonorOnYourCow won by resignation"]

1. e4 {[%clk 0:03:00.9]} 1... c5 {[%clk 0:02:59.5]} 2. Nf3 {[%clk 0:03:01]} 2...
d6 {[%clk 0:02:59.9]} 3. d4 {[%clk 0:03:01.5]} 3... cxd4 {[%clk 0:03:00.7]} 4.
Nxd4 {[%clk 0:03:01.7]} 4... Nf6 {[%clk 0:03:01.3]} 5. f3 {[%clk 0:03:01.9]}
5... e5 {[%clk 0:03:01]} 6. Nb3 {[%clk 0:03:01.9]} 6... a5 {[%clk 0:03:01.7]} 7.
Bb5+ {[%clk 0:02:57.7]} 7... Bd7 {[%clk 0:02:54.5]} 8. a4 {[%clk 0:02:58.1]}
8... d5 {[%clk 0:02:45.9]} 9. exd5 {[%clk 0:02:35.7]} 9... Bxb5 {[%clk
0:02:44.8]} 10. axb5 {[%clk 0:02:36.6]} 10... Nxd5 {[%clk 0:02:36.3]} 11. c4
{[%clk 0:02:31.5]} 11... Bb4+ {[%clk 0:02:35.8]} 12. Bd2 {[%clk 0:02:20.1]}
12... Ne3 {[%clk 0:02:34.9]} 13. Qc1 {[%clk 0:02:10.7]} 13... Nxg2+ {[%clk
0:02:31.3]} 14. Kf2 {[%clk 0:02:10.7]} 14... Nf4 {[%clk 0:02:21.5]} 15. Bxf4
{[%clk 0:02:07.5]} 15... exf4 {[%clk 0:02:20.8]} 16. Qxf4 {[%clk 0:01:45.6]}
16... O-O {[%clk 0:02:20.5]} 17. Nc3 {[%clk 0:01:38.7]} 17... Qb6+ {[%clk
0:02:16.4]} 18. Qe3 {[%clk 0:01:11.5]} 18... Qf6 {[%clk 0:02:02.8]} 19. Qd4
{[%clk 0:00:56.1]} 19... Qg6 {[%clk 0:01:54.8]} 20. Qe4 {[%clk 0:00:41.4]} 20...
Qh6 {[%clk 0:00:47.6]} 21. Nd5 {[%clk 0:00:07.2]} 21... Nd7 {[%clk 0:00:35.4]}
22. Qf4 {[%clk 0:00:07.6]} 22... Qg6 {[%clk 0:00:31.4]} 23. Rhg1 {[%clk
0:00:06.9]} 23... Qc2+ {[%clk 0:00:30.9]} 24. Kf1 {[%clk 0:00:06.1]} 24... Qxb3
{[%clk 0:00:26.7]} 25. Qd4 {[%clk 0:00:05]} 25... Qxf3+ {[%clk 0:00:24.6]} 26.
Qf2 {[%clk 0:00:04.8]} 26... Qxf2+ {[%clk 0:00:24]} 27. Kxf2 {[%clk 0:00:05.7]}
27... Bc5+ {[%clk 0:00:24]} 28. Kg2 {[%clk 0:00:05.1]} 28... Bxg1 {[%clk
0:00:24.3]} 29. Kxg1 {[%clk 0:00:05.2]} 0-1

[Event "Late-Titled-Tuesday-Blitz-June-18-2024"]
[Site "Chess.com"]
[Date "2024.06.18"]
[Round "3"]
[White "Connectedcloud"]
[Black "Finejupiter"]
[Result "1-0"]
[WhiteElo "2349"]
[BlackElo "1902"]
[TimeControl "180+1"]
[EndTime "14:29:00 PDT"]
[Termination "Connectedcloud won by resignation"]

1. e4 {[%clk 0:03:00.9]} 1... c5 {[%clk 0:02:55.7]} 2. Nf3 {[%clk 0:03:00.9]}
2... a6 {[%clk 0:02:50.7]} 3. c4 {[%clk 0:02:59.3]} 3... Nc6 {[%clk 0:02:49.8]}
4. Nc3 {[%clk 0:02:57.8]} 4... d6 {[%clk 0:02:46]} 5. d4 {[%clk 0:02:56.8]} 5...
cxd4 {[%clk 0:02:46.5]} 6. Nxd4 {[%clk 0:02:57]} 6... Nf6 {[%clk 0:02:47.4]} 7.
Be2 {[%clk 0:02:52.2]} 7... g6 {[%clk 0:02:46]} 8. Be3 {[%clk 0:02:49.9]} 8...
Bg7 {[%clk 0:02:45.9]} 9. O-O {[%clk 0:02:49.7]} 9... O-O {[%clk 0:02:46]} 10.
Rc1 {[%clk 0:02:40.5]} 10... Rb8 {[%clk 0:02:34.9]} 11. h3 {[%clk 0:02:31.1]}
11... Nxd4 {[%clk 0:02:35.1]} 12. Bxd4 {[%clk 0:02:30.6]} 12... Be6 {[%clk
0:02:36]} 13. b3 {[%clk 0:02:25.3]} 13... Qa5 {[%clk 0:02:31.2]} 14. Rc2 {[%clk
0:01:56.2]} 14... Rfc8 {[%clk 0:02:29.3]} 15. Qd2 {[%clk 0:01:48.3]} 15... h5
{[%clk 0:02:07.3]} 16. Nd5 {[%clk 0:01:31.9]} 16... Qxd2 {[%clk 0:02:07.2]} 17.
Nxf6+ {[%clk 0:01:24.9]} 17... Bxf6 {[%clk 0:02:06.2]} 18. Rxd2 {[%clk
0:01:25.1]} 18... Bxd4 {[%clk 0:02:05.7]} 19. Rxd4 {[%clk 0:01:25.4]} 19... b5
{[%clk 0:02:06]} 20. cxb5 {[%clk 0:01:21.9]} 20... axb5 {[%clk 0:02:04.2]} 21.
Rb4 {[%clk 0:01:22.2]} 21... Rc2 {[%clk 0:02:03.6]} 22. Rxb5 {[%clk 0:01:19.4]}
22... Rxb5 {[%clk 0:01:57.6]} 23. Bxb5 {[%clk 0:01:19.6]} 23... Rxa2 {[%clk
0:01:58.4]} 24. Rb1 {[%clk 0:01:19.3]} 24... Kg7 {[%clk 0:01:44.9]} 25. b4
{[%clk 0:01:17.9]} 25... Rd2 {[%clk 0:01:41.4]} 26. Bc6 {[%clk 0:01:15.7]} 26...
Ba2 {[%clk 0:01:40.5]} 27. Ra1 {[%clk 0:01:10]} 27... Rb2 {[%clk 0:01:29.3]} 28.
b5 {[%clk 0:00:52.9]} 28... Bc4 {[%clk 0:01:28]} 29. Ra5 {[%clk 0:00:51.5]}
29... Kf6 {[%clk 0:01:27.9]} 30. Kh2 {[%clk 0:00:42.5]} 30... Ke5 {[%clk
0:01:27.7]} 31. b6+ {[%clk 0:00:41.1]} 31... Kf4 {[%clk 0:01:17.4]} 32. b7
{[%clk 0:00:39.2]} 32... Rxf2 {[%clk 0:00:40.8]} 33. b8=Q {[%clk 0:00:38]} 33...
Bf1 {[%clk 0:00:41]} 34. e5 {[%clk 0:00:33.6]} 34... Rc2 {[%clk 0:00:32.1]} 35.
Qb4+ {[%clk 0:00:31.2]} 35... Rc4 {[%clk 0:00:30.7]} 36. Qd2+ {[%clk 0:00:31.1]}
36... Kf5 {[%clk 0:00:28.2]} 37. exd6+ {[%clk 0:00:31.3]} 1-0